bitfinex/quotes_SOLUSD_20240824
["timestamp","ask_amount","ask_price","bid_price","bid_amount"]
[1724542148268,6.49714569,159.83,159.74,55.84815274]
[1724542150774,6.49714569,159.83,159.75,1.25160478]
[1724542151000,6.49714569,159.83,159.74,55.84815274]
[1724542155310,6.49714569,159.83,159.74,55.84815274]
[1724542158001,6.49714569,159.83,159.75,4.56077819]
[1724542158203,6.49714569,159.83,159.76,47.94456392]
[1724542158383,6.49714569,159.83,159.77,2.94458965]
[1724542158583,6.49714569,159.83,159.78,2.94458965]
[1724542158886,6.49714569,159.83,159.76,45.0]
[1724542159199,6.49714569,159.83,159.75,45.0]
[1724542163813,6.49714569,159.83,159.74,10.84815274]
[1724542166812,6.49714569,159.83,159.74,17.23829084]
[1724542167028,10.84815274,159.82,159.73,6.3901381]
[1724542167197,10.84815274,159.82,159.74,6.3901381]
[1724542167391,10.84815274,159.8,159.73,6.38983206]
[1724542167711,16.4674,159.79,159.74,6.38983206]
[1724542167893,16.4674,159.79,159.72,6.38983206]
[1724542168094,16.4674,159.79,159.73,26.38983206]
[1724542168301,16.4674,159.79,159.74,6.38983206]
[1724542169027,16.4674,159.79,159.73,20.0]
[1724542169222,16.4674,159.79,159.74,6.39049301]
[1724542169424,16.4674,159.79,159.71,27.80985766]
[1724542169608,16.4674,159.79,159.72,45.0]
[1724542169802,16.4674,159.79,159.73,20.0]
[1724542172429,16.4674,159.79,159.74,10.84815274]
[1724542175330,16.4674,159.79,159.75,1.56649213]
[1724542175628,16.4674,159.79,159.76,1.56649213]
[1724542175797,16.4674,159.79,159.77,1.56649213]
[1724542176002,16.4674,159.79,159.78,1.56649213]
[1724542178238,16.4674,159.79,159.78,1.56649595]
[1724542181442,16.4674,159.79,159.74,10.84815274]
[1724542181630,16.4674,159.79,159.78,1.56650032]
[1724542184423,16.4674,159.79,159.78,8.91679326]
[1724542186629,16.4674,159.79,159.78,11.74238561]
[1724542187943,16.4674,159.79,159.78,4.39209267]
[1724542188445,16.4674,159.79,159.78,4.39421037]
[1724542188622,16.4674,159.79,159.78,1.5667966]
[1724542188945,27.31555274,159.79,159.78,1.56680537]
[1724542189120,27.31555274,159.79,159.78,4.39396532]
[1724542189332,27.31555274,159.79,159.78,1.56680537]
[1724542193544,27.31555274,159.79,159.78,1.56673581]
[1724542195025,27.31555274,159.79,159.78,1.56685788]
[1724542195426,33.57375274,159.79,159.78,1.56685788]
[1724542195657,78.57375274,159.79,159.78,1.56685788]
[1724542196355,72.31555274,159.79,159.71,12.24091874]
[1724542196532,72.31555274,159.79,159.65,16.4299]
[1724542196533,10.84815274,159.75,159.72,4.89076775]
[1724542196732,10.84815274,159.75,159.68,20.0]
[1724542196948,10.84815274,159.75,159.69,7.35253201]
[1724542197251,10.84815274,159.75,159.7,7.35253201]
[1724542197551,10.84815274,159.75,159.71,7.35299481]
[1724542197753,10.84815274,159.75,159.68,20.0]
[1724542198050,10.84815274,159.75,159.69,7.35208673]
[1724542198257,6.54067688,159.74,159.7,7.35208673]
[1724542198465,6.54067688,159.74,159.67,20.0]
[1724542198842,6.54067688,159.74,159.68,7.35237636]
[1724542199152,6.54067688,159.74,159.66,35.62358082]
[1724542199361,6.54067688,159.74,159.69,7.35301548]
[1724542199574,6.54067688,159.74,159.66,37.17531425]
[1724542199856,6.54067688,159.74,159.66,29.36386578]
[1724542201047,15.7275,159.73,159.65,7.81213235]
[1724542201245,15.7275,159.73,159.64,17.33095274]
[1724542201560,26.57565274,159.73,159.65,7.81139124]
[1724542201868,26.57565274,159.73,159.64,7.81139124]
[1724542202250,26.57565274,159.73,159.63,7.81139124]
[1724542202449,26.57565274,159.73,159.64,20.0]
[1724542202663,26.57565274,159.73,159.64,38.65954398]
[1724542203366,26.57565274,159.73,159.64,30.84815274]
[1724542203867,26.57565274,159.73,159.64,20.0]
[1724542206067,10.84815274,159.71,159.64,20.0]
[1724542206361,10.84815274,159.71,159.63,20.0]
[1724542206731,10.84815274,159.71,159.62,7.81139124]
[1724542206938,10.84815274,159.69,159.61,7.81139124]
[1724542207138,10.84815274,159.69,159.6,18.65954398]
[1724542207361,15.7275,159.68,159.6,18.65954398]
[1724542207566,15.7275,159.68,159.6,10.84815274]
[1724542208168,15.7275,159.68,159.61,20.0]
[1724542209073,15.7275,159.68,159.62,1.56751331]
[1724542209242,15.7275,159.68,159.63,1.56751331]
[1724542209445,15.7275,159.68,159.64,1.56751331]
[1724542209646,15.7275,159.68,159.59,20.0]
[1724542209647,15.7275,159.68,159.65,1.56751331]
[1724542210040,15.7275,159.68,159.66,1.56751331]
[1724542210242,15.7275,159.68,159.59,20.0]
[1724542210474,15.7275,159.68,159.6,1.5676706]
[1724542210666,15.7275,159.68,159.61,1.5676706]
[1724542210852,15.7275,159.68,159.62,1.5676706]
[1724542211056,15.7275,159.68,159.63,1.5676706]
[1724542211261,15.7275,159.68,159.64,1.5676613]
[1724542211566,15.7275,159.68,159.61,10.84815274]
[1724542211567,15.7275,159.68,159.65,1.5676613]
[1724542211744,15.7275,159.68,159.61,12.10093087]
[1724542211948,15.7275,159.68,159.62,1.56765552]
[1724542212169,15.7275,159.68,159.63,1.56765552]
[1724542212366,15.7275,159.68,159.64,1.56765552]
[1724542212573,15.7275,159.68,159.65,1.56765552]
[1724542212756,15.7275,159.68,159.61,12.10093087]
[1724542212954,15.7275,159.68,159.62,2.8204317]
[1724542213164,15.7275,159.68,159.63,1.56765223]
[1724542213474,15.7275,159.68,159.64,1.56765223]
[1724542213676,15.7275,159.68,159.65,1.56765223]
[1724542213978,15.7275,159.68,159.61,10.84815274]
[1724542214483,15.7275,159.68,159.62,1.5676528]
[1724542214780,15.7275,159.68,159.63,1.5676528]
[1724542214958,15.7275,159.68,159.64,1.5676528]
[1724542215268,15.7275,159.68,159.62,1.25277997]
[1724542215480,15.7275,159.68,159.63,1.56765266]
[1724542215678,15.7275,159.68,159.64,1.56765266]
[1724542215869,15.7275,159.68,159.62,1.25277997]
[1724542216079,15.7275,159.68,159.63,1.5676611]
[1724542216277,15.7275,159.68,159.64,1.5676611]
[1724542216575,15.7275,159.68,159.62,1.25277997]
[1724542216747,15.7275,159.68,159.63,1.56766138]
[1724542217082,15.7275,159.68,159.64,1.56766138]
[1724542217377,15.7275,159.68,159.61,10.84815274]
[1724542217574,15.7275,159.68,159.62,1.25277988]
[1724542218081,15.7275,159.68,159.63,1.56766138]
[1724542218279,15.7275,159.68,159.64,2.82044123]
[1724542218484,15.7275,159.68,159.65,1.252583]
[1724542218954,15.7275,159.68,159.63,10.84815274]
[1724542219354,15.7275,159.68,159.64,2.94747117]
[1724542220960,15.7275,159.68,159.64,2.94722255]
[1724542224751,15.7275,159.68,159.63,10.84815274]
[1724542224957,15.7275,159.68,159.64,2.94805784]
[1724542225183,15.7275,159.68,159.65,2.94805423]
[1724542225476,15.7275,159.68,159.64,2.94805423]
[1724542225653,15.7275,159.68,159.65,2.94805423]
[1724542225852,15.7275,159.68,159.64,2.94805423]
[1724542226085,15.7275,159.68,159.65,2.94805423]
[1724542226261,15.7275,159.68,159.63,10.84815274]
[1724542226262,15.7275,159.68,159.64,2.94805423]
[1724542226472,15.7275,159.68,159.65,2.94805423]
[1724542226656,15.7275,159.68,159.63,2.94805423]
[1724542226856,15.7275,159.68,159.64,2.94805423]
[1724542227057,15.7275,159.68,159.65,2.94805423]
[1724542227393,15.7275,159.68,159.62,45.0]
[1724542228652,15.7275,159.68,159.63,10.84815274]
[1724542228978,6.53718004,159.71,159.65,10.84815274]
[1724542229352,15.1102,159.72,159.65,10.84815274]
[1724542229654,15.1102,159.72,159.66,1.25239785]
[1724542233870,15.1102,159.72,159.67,10.84815274]
[1724542234180,15.1102,159.72,159.68,1.25225208]
[1724542234884,15.1102,159.72,159.66,12.37621384]
[1724542235067,15.1102,159.72,159.66,13.62848037]
[1724542236590,15.1102,159.72,159.66,20.01668249]
[1724542237397,15.1102,159.72,159.66,20.01569895]
[1724542237693,15.1102,159.72,159.66,12.37621384]
[1724542238193,15.1102,159.72,159.66,18.76343242]
[1724542239184,15.1102,159.72,159.67,6.38721858]
[1724542240291,15.1102,159.72,159.67,6.3869704]
[1724542241179,15.1102,159.72,159.68,6.3869704]
[1724542241378,15.1102,159.72,159.66,6.3869704]
[1724542241574,15.1102,159.72,159.67,6.3869704]
[1724542241895,15.1102,159.72,159.66,6.3869704]
[1724542242104,15.1102,159.72,159.67,6.3869704]
[1724542242276,15.1102,159.72,159.66,6.38682669]
[1724542242478,15.1102,159.72,159.67,6.38682669]
[1724542242673,15.1102,159.72,159.66,6.38682669]
[1724542242879,15.1102,159.72,159.67,6.38682669]
[1724542243093,15.1102,159.72,159.66,6.38682669]
[1724542243300,15.1102,159.72,159.67,6.38682669]
[1724542243607,15.1102,159.72,159.66,6.38682669]
[1724542243803,15.1102,159.72,159.67,6.38682669]
[1724542243972,15.1102,159.72,159.66,6.38682669]
[1724542244173,15.1102,159.72,159.67,6.38682669]
[1724542244374,15.1102,159.72,159.66,6.38682669]
[1724542244581,15.1102,159.72,159.65,20.0]
[1724542244582,15.1102,159.72,159.67,6.38682669]
[1724542244877,15.1102,159.72,159.66,6.38682669]
[1724542245074,15.1102,159.72,159.67,7.63928911]
[1724542245303,15.1102,159.72,159.68,1.25235231]
[1724542245985,15.1102,159.72,159.68,7.63964129]
[1724542246191,15.1102,159.72,159.68,1.25235231]
[1724542246392,15.1102,159.72,159.66,6.38728898]
[1724542246393,15.1102,159.72,159.67,10.84815274]
[1724542246602,15.1102,159.72,159.68,7.63919455]
[1724542246908,15.1102,159.72,159.68,1.25223495]
[1724542247082,15.1102,159.72,159.68,7.63904268]
[1724542249715,15.1102,159.72,159.69,2.82357827]
[1724542250078,15.1102,159.72,159.7,2.82357827]
[1724542250383,15.1102,159.72,159.71,2.8234567]
[1724542251484,15.1102,159.72,159.68,6.38390276]
[1724542251683,15.1102,159.72,159.69,2.82353439]
[1724542251897,15.1102,159.72,159.7,2.82353439]
[1724542252092,15.1102,159.72,159.68,6.38390276]
[1724542252302,15.1102,159.72,159.69,2.82308815]
[1724542252500,15.1102,159.72,159.7,2.82308815]
[1724542252707,15.1102,159.72,159.67,10.84815274]
[1724542252909,15.1102,159.72,159.68,2.82309857]
[1724542253208,15.1102,159.72,159.69,2.82309857]
[1724542253399,15.1102,159.72,159.7,2.82309857]
[1724542253608,15.1102,159.72,159.67,10.84815274]
[1724542253779,15.1102,159.72,159.68,9.20595464]
[1724542253981,15.1102,159.72,159.69,2.82302883]
[1724542254313,15.1102,159.72,159.7,2.82302883]
[1724542254520,15.1102,159.72,159.68,6.38292581]
[1724542254817,15.1102,159.72,159.69,2.82302856]
[1724542254995,15.1102,159.72,159.7,2.82302856]
[1724542255195,15.1102,159.72,159.68,6.38292581]
[1724542255425,15.1102,159.72,159.69,2.82301868]
[1724542255596,15.1102,159.72,159.7,2.82301868]
[1724542255797,15.1102,159.72,159.67,6.38292581]
[1724542256012,15.1102,159.72,159.68,9.20605736]
[1724542256213,15.1102,159.72,159.69,2.82313155]
[1724542256410,15.1102,159.72,159.7,2.82313722]
[1724542256713,15.1102,159.72,159.67,6.38302265]
[1724542256907,15.1102,159.72,159.68,14.09326379]
[1724542257109,15.1102,159.72,159.69,7.71024114]
[1724542257332,15.1102,159.72,159.7,2.82376218]
[1724542257510,15.1102,159.72,159.67,6.38302265]
[1724542257823,15.1102,159.72,159.68,6.38302265]
[1724542258115,15.1102,159.72,159.68,4.88738016]
[1724542258423,15.1102,159.72,159.69,4.88738016]
[1724542258596,15.1102,159.72,159.64,1.55918243]
[1724542258795,15.1102,159.72,159.65,11.27683194]
[1724542259013,15.1102,159.72,159.66,11.27683194]
[1724542259216,10.84815274,159.71,159.67,11.27637521]
[1724542259528,10.84815274,159.71,159.68,4.88885444]
[1724542259700,10.84815274,159.71,159.64,26.38752077]
[1724542259900,10.84815274,159.71,159.65,18.62474273]
[1724542260119,10.84815274,159.71,159.66,18.62474273]
[1724542260294,10.84815274,159.71,159.64,20.0]
[1724542260295,10.84815274,159.71,159.67,18.62474273]
[1724542260497,15.1102,159.72,159.68,12.23722196]
[1724542260711,25.95835274,159.72,159.69,4.88948833]
[1724542260930,25.95835274,159.72,159.66,13.73365259]
[1724542261092,25.95835274,159.72,159.67,12.23634178]
[1724542261417,32.50012218,159.72,159.68,4.8898943]
[1724542261633,32.50012218,159.72,159.63,20.0]
[1724542261803,32.50012218,159.72,159.65,6.38855114]
[1724542261997,32.50012218,159.72,159.66,4.88966437]
[1724542262314,32.50012218,159.72,159.66,7.34792357]
[1724542262497,32.50012218,159.72,159.67,7.34792357]
[1724542262823,32.50012218,159.72,159.68,7.34792357]
[1724542262994,32.50012218,159.72,159.63,20.0]
[1724542263197,32.50012218,159.72,159.64,7.34868296]
[1724542263412,32.50012218,159.72,159.65,7.34868296]
[1724542263610,32.50012218,159.72,159.66,7.34868296]
[1724542263803,32.50012218,159.72,159.67,7.34868296]
[1724542264017,32.50012218,159.72,159.63,20.0]
[1724542264204,32.50012218,159.72,159.64,7.34839635]
[1724542264411,32.50012218,159.72,159.65,7.34839635]
[1724542264616,32.50012218,159.72,159.66,7.34839635]
[1724542264928,32.50012218,159.72,159.67,7.34839635]
[1724542265227,32.50012218,159.72,159.63,20.0]
[1724542265401,32.50012218,159.72,159.64,7.34839968]
[1724542266006,32.50012218,159.72,159.65,7.34839968]
[1724542266215,32.50012218,159.72,159.66,7.34839968]
[1724542266415,32.50012218,159.72,159.63,20.0]
[1724542269104,32.50012218,159.72,159.63,27.80431744]
[1724542272238,32.50012218,159.72,159.63,20.0]
[1724542272535,21.8766,159.69,159.63,7.80380169]
[1724542272707,10.84815274,159.68,159.62,7.80380169]
[1724542272907,10.84815274,159.68,159.59,10.84815274]
[1724542273733,10.84815274,159.68,159.6,45.0]
[1724542278745,28.42081092,159.69,159.61,12.10091675]
[1724542279048,21.8766,159.69,159.62,45.0]
[1724542279342,21.8766,159.69,159.63,1.56751848]
[1724542279642,21.8766,159.69,159.64,4.56096949]
[1724542279853,21.8766,159.69,159.62,45.0]
[1724542280144,21.8766,159.69,159.59,12.38918465]
[1724542280337,10.84815274,159.68,159.57,6.6564]
[1724542280523,16.1851,159.65,159.55,10.84815274]
[1724542281042,16.1851,159.65,159.55,12.39634445]
[1724542281344,6.1084,159.64,159.55,12.39634445]
[1724542282238,6.1084,159.64,159.56,65.0]
[1724542283451,6.1084,159.64,159.57,10.84815274]
[1724542283751,6.1084,159.64,159.59,10.84815274]
[1724542283936,6.1084,159.64,159.6,1.25291997]
[1724542287552,6.1084,159.64,159.61,2.94589913]
[1724542287763,6.1084,159.64,159.6,1.25291997]
[1724542289063,6.1084,159.64,159.59,10.84815274]
[1724542291042,6.1084,159.64,159.58,20.0]
[1724542297141,6.1084,159.64,159.56,55.84815274]
[1724542297346,6.1084,159.64,159.57,20.0]
[1724542300446,6.1084,159.64,159.58,45.0]
[1724542301084,6.1084,159.64,159.58,55.84815274]
[1724542301589,16.1851,159.65,159.59,1.25291068]
[1724542301762,16.1851,159.65,159.6,10.84815274]
[1724542301964,15.0764,159.69,159.64,10.84815274]
[1724542302147,6.4111,159.72,159.67,10.84815274]
[1724542302148,12.94195335,159.72,159.67,10.84815274]
[1724542302346,6.4111,159.72,159.67,10.84815274]
[1724542304965,15.0764,159.73,159.67,10.84815274]
[1724542305281,15.0764,159.73,159.68,45.0]
[1724542305883,15.0764,159.73,159.69,1.2521385]
[1724542307180,6.4111,159.76,159.69,12.10029124]
[1724542310067,6.4111,159.76,159.69,10.84815274]
[1724542311079,10.84815274,159.75,159.65,6.23451277]
[1724542311389,10.84815274,159.75,159.66,30.84815274]
[1724542315204,6.4111,159.76,159.66,30.84815274]
[1724542317589,6.4111,159.76,159.67,2.82042091]
[1724542317898,6.4111,159.76,159.68,2.82042091]
[1724542318110,6.4111,159.76,159.66,30.84815274]
[1724542320781,6.4111,159.76,159.68,10.84815274]
[1724542320982,6.4111,159.76,159.7,10.84815274]
[1724542321219,6.4111,159.76,159.71,1.25210914]
[1724542322799,6.4111,159.76,159.66,20.0]
[1724542322800,6.4111,159.76,159.68,10.84815274]
[1724542323793,6.4111,159.76,159.69,1.25211062]
[1724542324698,6.4111,159.76,159.68,10.84815274]
[1724542327389,6.4111,159.76,159.68,12.1002637]
[1724542327593,6.4111,159.76,159.7,10.84815274]
[1724542327812,6.4111,159.76,159.71,1.25199565]
[1724542327994,15.0764,159.77,159.72,10.84815274]
[1724542328194,15.0764,159.77,159.73,1.25183294]
[1724542328414,15.0764,159.77,159.72,10.84815274]
[1724542328918,15.0764,159.77,159.7,10.84815274]
[1724542329088,15.0764,159.77,159.71,65.0]
[1724542339924,15.0764,159.77,159.71,45.0]
[1724542344744,15.0764,159.77,159.68,1.51818096]
[1724542345029,15.0764,159.77,159.69,4.55510146]
[1724542345232,15.0764,159.77,159.7,11.89201229]
[1724542345441,15.0764,159.77,159.71,4.55510146]
[1724542345637,15.0764,159.77,159.7,18.18506357]
[1724542346836,15.0764,159.77,159.71,7.33691083]
[1724542347343,15.0764,159.77,159.7,10.84815274]
[1724542347518,15.0764,159.77,159.72,7.33770953]
[1724542347843,15.0764,159.77,159.73,2.93782963]
[1724542348049,15.0764,159.77,159.74,2.93782963]
[1724542348232,15.0764,159.77,159.75,2.93782963]
[1724542348546,15.0764,159.77,159.7,20.05685848]
[1724542348732,15.0764,159.77,159.71,10.27562349]
[1724542349050,15.0764,159.77,159.72,10.27562349]
[1724542349215,15.0764,159.77,159.73,2.93779927]
[1724542349516,15.0764,159.77,159.74,2.93779927]
[1724542349811,15.0764,159.77,159.75,2.93779927]
[1724542350016,15.0764,159.77,159.76,2.93779927]
[1724542350618,15.0764,159.77,159.72,7.33603343]
[1724542350819,15.0764,159.77,159.73,2.9371101]
[1724542351132,15.0764,159.77,159.74,2.9371101]
[1724542351328,15.0764,159.77,159.75,2.9371101]
[1724542351530,15.0764,159.77,159.76,2.9371101]
[1724542352143,17.37914707,159.79,159.76,2.9371101]
[1724542352144,6.53099433,159.79,159.76,2.9371101]
[1724542352448,6.3683,159.8,159.72,20.05332693]
[1724542352449,6.3683,159.8,159.77,2.9371101]
[1724542352749,6.3683,159.8,159.72,10.84815274]
[1724542352942,17.21645274,159.8,159.73,10.27040328]
[1724542353150,17.21645274,159.8,159.74,2.93598631]
[1724542353151,10.84815274,159.78,159.74,2.93598631]
[1724542353446,16.3291,159.77,159.75,2.93598631]
[1724542353645,16.3291,159.77,159.7,17.79771068]
[1724542353646,16.3291,159.77,159.76,2.93598631]
[1724542353944,16.3291,159.77,159.69,10.84815274]
[1724542354117,16.3291,159.77,159.72,7.33646281]
[1724542354318,16.3291,159.77,159.7,9.20732776]
[1724542354536,16.3291,159.77,159.73,10.27253507]
[1724542354738,16.3291,159.77,159.74,2.93676929]
[1724542355140,16.3291,159.77,159.75,2.93676929]
[1724542355350,16.3291,159.77,159.76,2.93676447]
[1724542357845,16.3291,159.77,159.76,2.93663664]
[1724542360965,16.3291,159.77,159.69,10.84815274]
[1724542361141,16.3291,159.77,159.76,2.93668687]
[1724542362050,27.17725274,159.77,159.76,2.93668687]
[1724542362250,27.17725274,159.77,159.67,10.84815274]
[1724542362251,27.17725274,159.77,159.68,7.79354635]
[1724542362451,27.17725274,159.77,159.69,19.48277041]
[1724542362633,16.3291,159.77,159.7,19.48277041]
[1724542362835,16.3291,159.77,159.71,76.58286758]
[1724542363034,16.3291,159.77,159.72,19.48277041]
[1724542363235,12.9001504,159.8,159.73,10.27488424]
[1724542363537,12.9001504,159.8,159.74,10.27488424]
[1724542363731,12.9001504,159.8,159.75,10.27488424]
[1724542363732,6.5318504,159.8,159.75,10.27488424]
[1724542363953,16.1791,159.81,159.75,10.27488424]
[1724542363954,16.1791,159.81,159.76,4.18956602]
[1724542364154,16.1791,159.81,159.75,10.84815274]
[1724542364342,16.1791,159.81,159.77,2.93439383]
[1724542364549,16.1791,159.81,159.78,2.93429565]
[1724542365058,16.1791,159.81,159.79,2.93429565]
[1724542365257,16.1791,159.81,159.73,10.84815274]
[1724542365559,16.1791,159.81,159.74,2.93428218]
[1724542365766,16.1791,159.81,159.75,2.93428218]
[1724542365962,16.1791,159.81,159.76,2.93421273]
[1724542366638,16.1791,159.81,159.77,2.93421273]
[1724542366958,16.1791,159.81,159.78,2.93421273]
[1724542367168,16.1791,159.81,159.79,2.93421273]
[1724542367473,16.1791,159.81,159.74,7.3299567]
[1724542367647,16.1791,159.81,159.75,10.26361543]
[1724542367947,16.1791,159.81,159.76,2.93392124]
[1724542368147,16.1791,159.81,159.77,2.93392124]
[1724542368463,16.1791,159.81,159.78,2.93392124]
[1724542368646,16.1791,159.81,159.79,2.93392124]
[1724542368844,16.1791,159.81,159.74,7.3299567]
[1724542369046,16.1791,159.81,159.75,10.26359925]
[1724542369365,16.1791,159.81,159.76,2.93400161]
[1724542369655,16.1791,159.81,159.77,2.93400161]
[1724542369973,16.1791,159.81,159.78,2.93400161]
[1724542370163,16.1791,159.81,159.79,2.93400161]
[1724542370362,16.1791,159.81,159.74,7.3299567]
[1724542370682,16.1791,159.81,159.75,10.26338436]
[1724542370874,16.1791,159.81,159.76,2.93391637]
[1724542371070,16.1791,159.81,159.77,4.18564446]
[1724542371366,16.1791,159.81,159.78,2.93391637]
[1724542371567,16.1791,159.81,159.77,12.09988083]
[1724542371869,6.4569,159.84,159.78,10.25773549]
[1724542372166,6.4569,159.84,159.79,2.93195932]
[1724542372359,6.4569,159.84,159.8,2.93195932]
[1724542372550,6.4569,159.84,159.81,2.93195932]
[1724542372754,6.4569,159.84,159.82,2.93195932]
[1724542372961,6.4569,159.84,159.77,10.84815274]
[1724542373154,6.4569,159.84,159.78,2.93079384]
[1724542373378,6.4569,159.84,159.79,2.93079384]
[1724542373545,6.4569,159.84,159.8,2.93079384]
[1724542373747,6.4569,159.84,159.77,10.84815274]
[1724542373966,6.4569,159.84,159.78,2.93065665]
[1724542374178,6.4569,159.84,159.79,2.93065665]
[1724542374344,6.4569,159.84,159.8,2.93065665]
[1724542374554,22.70985355,159.85,159.81,2.93065665]
[1724542374749,16.1791,159.85,159.78,1.25151661]
[1724542374958,16.1791,159.85,159.79,2.93053994]
[1724542375261,23.63362779,159.87,159.8,4.18195824]
[1724542375262,6.53037505,159.87,159.8,4.18195824]
[1724542375463,6.53037505,159.87,159.81,2.93053994]
[1724542375668,6.2432,159.88,159.82,2.93053994]
[1724542375974,6.2432,159.88,159.83,2.93053994]
[1724542376271,6.2432,159.88,159.8,1.2514183]
[1724542376481,6.2432,159.88,159.81,2.92903574]
[1724542376677,6.2432,159.88,159.82,4.18033815]
[1724542376855,6.2432,159.88,159.83,2.92903574]
[1724542377055,6.2432,159.88,159.8,1.25126789]
[1724542377255,6.2432,159.88,159.81,2.92696237]
[1724542377472,6.2432,159.88,159.82,2.92696237]
[1724542377777,6.2432,159.88,159.83,2.92696237]
[1724542377976,6.2432,159.88,159.84,2.92696237]
[1724542378197,6.2432,159.88,159.81,2.81307683]
[1724542378376,10.84815274,159.87,159.82,5.74002457]
[1724542378671,10.84815274,159.87,159.83,2.92694774]
[1724542378879,6.2432,159.88,159.79,55.84815274]
[1724542379079,10.84815274,159.87,159.8,5.74049301]
[1724542379377,10.84815274,159.87,159.81,5.74049301]
[1724542379565,10.84815274,159.87,159.82,2.92702866]
[1724542379765,10.84815274,159.87,159.83,2.92702866]
[1724542379946,10.84815274,159.87,159.79,55.84815274]
[1724542379947,10.84815274,159.87,159.8,2.81329044]
[1724542380149,10.84815274,159.87,159.81,5.74008049]
[1724542380372,10.84815274,159.87,159.82,2.92679005]
[1724542380750,10.84815274,159.87,159.83,2.92679005]
[1724542380946,10.84815274,159.87,159.8,2.81342919]
[1724542381152,10.84815274,159.87,159.81,2.92695988]
[1724542381348,10.84815274,159.87,159.82,2.92695806]
[1724542381576,10.84815274,159.87,159.81,2.92695988]
[1724542383574,6.2432,159.88,159.81,2.92695988]
[1724542383760,15.7383,159.89,159.82,1.25125406]
[1724542384088,6.2432,159.92,159.84,10.84815274]
[1724542385378,6.2432,159.92,159.82,10.84815274]
[1724542385704,6.2432,159.92,159.83,45.0]
[1724542387177,10.84815274,159.91,159.83,45.0]
[1724542387791,10.84815274,159.91,159.82,45.0]
[1724542390503,6.53221454,159.9,159.82,45.0]
[1724542395700,10.84815274,159.89,159.81,45.0]
[1724542397088,10.84815274,159.87,159.77,16.1257]
[1724542397408,10.84815274,159.87,159.78,45.0]
[1724542398684,10.84815274,159.87,159.78,45.0]
[1724542399005,10.84815274,159.85,159.76,6.5205]
[1724542399205,10.84815274,159.83,159.74,4.86862461]
[1724542399412,10.84815274,159.83,159.74,10.84815274]
[1724542399617,10.84815274,159.83,159.74,15.71814058]
[1724542399787,10.84815274,159.83,159.75,1.56614264]
[1724542400113,16.3539,159.82,159.75,1.56614264]
[1724542400416,16.3539,159.82,159.76,1.56614264]
[1724542400723,16.3539,159.82,159.77,1.56614264]
[1724542400899,16.3539,159.82,159.78,1.56614264]
[1724542401101,16.3539,159.82,159.74,1.56614264]
[1724542401294,16.3539,159.82,159.75,1.56614264]
[1724542401494,16.3539,159.82,159.76,1.56614264]
[1724542401691,16.3539,159.82,159.77,1.56614264]
[1724542401894,16.3539,159.82,159.78,1.56614264]
[1724542402111,16.3539,159.82,159.75,20.0]
[1724542402302,16.3539,159.82,159.76,1.56620221]
[1724542402504,16.3539,159.82,159.77,1.56620221]
[1724542402812,16.3539,159.82,159.78,1.56620221]
[1724542403019,16.3539,159.82,159.75,20.0]
[1724542403312,16.3539,159.82,159.76,1.56620152]
[1724542403513,16.3539,159.82,159.75,20.0]
[1724542404094,16.3539,159.82,159.75,30.84815274]
[1724542404291,16.3539,159.82,159.77,1.56620466]
[1724542404493,16.3539,159.82,159.78,1.56620246]
[1724542404699,16.3539,159.82,159.79,1.56620246]
[1724542404907,16.3539,159.82,159.77,1.56620466]
[1724542405108,16.3539,159.82,159.78,1.56619794]
[1724542405317,16.3539,159.82,159.79,1.56619794]
[1724542405604,16.3539,159.82,159.75,30.84815274]
[1724542405806,16.3539,159.82,159.76,1.56621081]
[1724542406019,16.3539,159.82,159.77,1.56621081]
[1724542406209,16.3539,159.82,159.78,1.56621081]
[1724542406416,16.3539,159.82,159.75,30.84815274]
[1724542406707,16.3539,159.82,159.76,1.56620657]
[1724542407107,16.3539,159.82,159.77,1.56620657]
[1724542407309,16.3539,159.82,159.78,1.56620657]
[1724542407619,16.3539,159.82,159.75,30.84815274]
[1724542407800,16.3539,159.82,159.76,1.56629253]
[1724542408002,16.3539,159.82,159.77,1.56629253]
[1724542408308,16.3539,159.82,159.78,1.56629253]
[1724542408513,16.3539,159.82,159.75,4.54393204]
[1724542408824,16.3539,159.82,159.76,1.56630839]
[1724542409125,16.3539,159.82,159.77,1.56630839]
[1724542409418,16.3539,159.82,159.78,1.56630839]
[1724542409622,16.3539,159.82,159.75,4.54213958]